bitfinex/quotes_ETHUSD_20240608
["timestamp","ask_amount","ask_price","bid_price","bid_amount"]
[1717881090587,1.13520807,3672.8,3672.6,0.35988057]
[1717881090782,1.13520807,3672.8,3672.2,3.36413]
[1717881091017,1.13520807,3672.8,3672.7,0.35981902]
[1717881091487,1.13520807,3672.8,3672.2,3.36413]
[1717881091693,1.13520807,3672.8,3672.3,0.36006523]
[1717881091998,1.13520807,3672.8,3672.2,3.36413]
[1717881092413,1.13520807,3672.8,3672.3,0.36006199]
[1717881092789,1.13520807,3672.8,3672.2,3.36413]
[1717881092992,1.13520807,3672.8,3672.4,0.36000043]
[1717881093190,1.13520807,3672.8,3672.2,3.36413]
[1717881093415,1.13520807,3672.8,3672.5,0.35993888]
[1717881093639,1.13520807,3672.8,3672.2,3.36413]
[1717881093787,1.13520807,3672.8,3672.6,0.35987733]
[1717881093989,1.13520807,3672.8,3672.2,3.36413]
[1717881094216,1.13520807,3672.8,3672.7,0.35982226]
[1717881094731,1.13520807,3672.8,3672.2,3.36413]
[1717881095029,1.13520807,3672.8,3672.7,0.35982226]
[1717881095226,1.13520807,3672.8,3672.2,3.36413]
[1717881095390,1.13520807,3672.8,3672.7,0.35982226]
[1717881095593,1.13520807,3672.8,3672.2,3.36413]
[1717881095792,1.13520807,3672.8,3672.7,0.35982226]
[1717881095992,1.13520807,3672.8,3672.2,3.36413]
[1717881096304,1.13555408,3672.8,3672.2,3.36413]
[1717881096507,1.13555408,3672.8,3672.3,0.36006847]
[1717881096716,1.13555408,3672.7,3672.2,3.36413]
[1717881096925,1.13555408,3672.7,3672.4,0.36000691]
[1717881097092,1.13555408,3672.7,3672.2,3.36413]
[1717881097434,1.13555408,3672.7,3672.3,0.36006847]
[1717881097808,1.13555408,3672.7,3672.2,3.36413]
[1717881098009,1.13555408,3672.7,3672.4,0.36000691]
[1717881098228,1.13555408,3672.7,3672.3,0.36006847]
[1717881098390,1.13555408,3672.7,3672.5,0.35994536]
[1717881098595,1.13555408,3672.7,3672.2,3.36413]
[1717881098832,1.13555408,3672.7,3672.6,0.35988381]
[1717881099051,1.13555408,3672.7,3672.2,3.36413]
[1717881099214,1.13555408,3672.7,3672.6,0.35987084]
[1717881099532,3.04356572,3672.9,3672.6,0.35987084]
[1717881099717,1.13569744,3672.7,3672.2,3.36413]
[1717881102314,1.13569744,3672.6,3672.2,3.36413]
[1717881102710,1.13569744,3672.7,3672.4,0.641]
[1717881102935,1.13569744,3672.7,3672.5,2.4787]
[1717881105742,1.13569744,3672.7,3672.4,0.641]
[1717881107610,1.13569744,3672.6,3672.4,0.641]
[1717881108132,1.13569744,3672.7,3672.4,0.641]
[1717881108327,1.13569744,3672.6,3672.4,0.641]
[1717881109405,1.13569744,3672.6,3672.4,1.28238065]
[1717881111248,1.13569744,3672.6,3672.5,0.35991296]
[1717881127017,1.42103476,3672.8,3672.5,0.35991296]
[1717881127018,1.13569744,3672.7,3672.5,0.35991296]
[1717881128778,1.13569744,3672.8,3672.5,0.35991296]
[1717881134374,1.13569744,3672.8,3672.6,0.641]
[1717881134575,1.13569744,3672.8,3672.7,0.35973479]
[1717881138181,1.13569744,3672.9,3672.7,0.35973479]
[1717881138351,1.13569744,3672.8,3672.7,0.35973479]
[1717881143891,1.13569744,3672.9,3672.7,0.35973479]
[1717881144107,1.63928642,3672.8,3672.7,0.35973479]
[1717881144267,2.4789,3672.7,3672.2,3.36413]
[1717881144469,3.61581969,3672.7,3672.2,2.72313]
[1717881144669,1.13691969,3672.6,3672.2,3.36413]
[1717881146206,3.90019239,3672.7,3672.2,3.36413]
[1717881146207,1.13691969,3672.5,3672.2,3.36413]
[1717881150395,1.13691969,3672.5,3671.9,2.4331]
[1717881150558,1.13691969,3672.4,3671.8,2.73403958]
[1717881150891,2.4671,3672.3,3671.9,0.641]
[1717881151254,2.4671,3672.3,3671.8,2.73403958]
[1717881151493,2.4671,3672.3,3671.8,3.37503958]
[1717881151854,2.4671,3672.3,3671.9,0.3599468]
[1717881153073,2.96963121,3672.3,3671.9,0.3599468]
[1717881153275,4.1065509,3672.3,3671.9,0.3599468]
[1717881153728,1.13691969,3672.1,3671.9,0.3599468]
[1717881154183,1.13691969,3672.2,3671.9,0.3599468]
[1717881156211,4.1065509,3672.3,3671.9,0.3599468]
[1717881157216,0.88907261,3672.2,3671.9,0.3599468]
[1717881157402,4.1065509,3672.3,3671.9,0.3599468]
[1717881159278,4.1065509,3672.3,3671.8,0.01058958]
[1717881159481,4.1065509,3672.3,3672.0,0.3602416]
[1717881159693,4.1065509,3672.3,3671.8,0.01058958]
[1717881161225,4.1065509,3672.3,3671.9,0.36030317]
[1717881161428,4.1065509,3672.3,3671.8,0.01058958]
[1717881161789,4.1065509,3672.3,3671.9,0.36030317]
[1717881162216,4.1065509,3672.3,3671.8,0.01058958]
[1717881162495,4.1065509,3672.3,3671.9,0.36030317]
[1717881163015,4.1065509,3672.3,3671.8,0.01058958]
[1717881163322,2.96963121,3672.3,3671.9,0.36030317]
[1717881163701,2.96963121,3672.3,3671.8,0.01058958]
[1717881164101,2.96963121,3672.3,3671.9,0.36030317]
[1717881164728,2.96963121,3672.3,3671.8,0.01058958]
[1717881165036,2.96963121,3672.3,3671.9,0.36025997]
[1717881165334,2.96963121,3672.3,3671.8,0.01058958]
[1717881165901,2.96963121,3672.3,3671.9,0.36025997]
[1717881166437,2.96963121,3672.3,3671.8,0.01058958]
[1717881166945,2.96963121,3672.3,3671.9,0.36025997]
[1717881167305,2.96963121,3672.3,3671.8,0.01058958]
[1717881167831,2.96963121,3672.3,3671.9,0.36025997]
[1717881168200,2.96963121,3672.3,3671.8,0.01058958]
[1717881168395,2.96963121,3672.3,3671.9,0.36025997]
[1717881168835,2.96963121,3672.3,3671.8,0.01058958]
[1717881169200,2.96963121,3672.3,3671.9,0.36025997]
[1717881169640,2.96963121,3672.3,3671.8,0.01058958]
[1717881170139,2.96963121,3672.3,3671.9,0.3602567]
[1717881170526,2.96963121,3672.3,3671.8,0.01058958]
[1717881170949,2.96963121,3672.3,3671.9,0.3602567]
[1717881171442,2.96963121,3672.3,3671.8,0.01058958]
[1717881171608,2.96963121,3672.3,3671.9,0.3602567]
[1717881172001,2.96963121,3672.3,3671.8,0.01058958]
[1717881172399,2.96963121,3672.3,3671.9,0.3602567]
[1717881172848,2.96963121,3672.3,3671.8,0.01058958]
[1717881173047,2.96963121,3672.3,3671.9,0.3602567]
[1717881173217,2.96963121,3672.3,3671.8,0.01058958]
[1717881173608,2.96963121,3672.3,3671.9,0.3602567]
[1717881174113,2.96963121,3672.3,3671.8,0.01058958]
[1717881174616,2.96963121,3672.3,3671.9,0.3602567]
[1717881174946,2.96963121,3672.3,3671.8,0.01058958]
[1717881175314,2.96963121,3672.3,3671.9,0.3602567]
[1717881179331,2.4671,3672.3,3671.9,0.3602567]
[1717881183260,3.05559005,3672.3,3671.9,0.3602567]
[1717881183649,4.19250974,3672.3,3671.9,0.3602567]
[1717881186075,2.4671,3672.3,3671.9,0.3602567]
[1717881188264,3.60401969,3672.3,3671.9,0.3602567]
[1717881188781,2.4671,3672.3,3671.9,0.3602567]
[1717881189123,3.60401969,3672.3,3671.9,0.3602567]
[1717881192157,1.13691969,3672.2,3671.9,0.3602567]
[1717881196159,1.13691969,3672.1,3671.9,0.3602567]
[1717881196649,1.13691969,3672.2,3671.9,0.3602567]
[1717881197196,1.13691969,3672.1,3671.9,0.3602567]
[1717881216718,1.13691969,3672.1,3671.9,0.96716833]
[1717881217389,1.13691969,3672.1,3671.9,1.60816833]
[1717881222318,1.13691969,3672.1,3672.0,2.3715]
[1717881222621,1.13691969,3672.5,3672.1,2.72323]
[1717881222818,1.42267287,3672.7,3672.2,1.31127266]
[1717881222819,1.13691969,3672.7,3672.2,1.31127266]
[1717881222971,1.13691969,3672.7,3672.2,1.67123452]
[1717881223845,1.13691969,3672.8,3672.2,1.67123452]
[1717881225316,1.13691969,3672.9,3672.5,0.641]
[1717881225520,1.13691969,3673.0,3672.7,0.641]
[1717881225807,1.13691969,3673.1,3672.8,0.34711676]
[1717881226226,1.13691969,3673.1,3672.7,0.641]
[1717881226582,1.13691969,3673.1,3672.8,0.34711676]
[1717881226982,1.13691969,3673.1,3672.7,0.641]
[1717881227184,1.13691969,3673.2,3672.7,0.641]
[1717881227432,1.13691969,3673.2,3672.8,0.34711676]
[1717881227957,1.13691969,3673.2,3672.9,0.34705522]
[1717881228300,1.13691969,3673.2,3672.7,0.641]
[1717881228502,1.13691969,3673.2,3672.8,0.34711676]
[1717881228801,1.13691969,3673.2,3672.7,0.641]
[1717881228997,1.13691969,3673.3,3672.9,0.34705522]
[1717881229267,2.3096194,3673.3,3672.8,0.34711676]
[1717881229418,2.3096194,3673.3,3673.0,0.34699369]
[1717881229419,1.17269971,3673.3,3673.0,0.34699369]
[1717881229602,1.17269971,3673.3,3672.9,0.34705522]
[1717881229802,1.17269971,3673.3,3673.1,0.34693215]
[1717881230114,1.17269971,3673.3,3673.2,0.34687062]
[1717881230310,1.17269971,3673.3,3672.7,0.641]
[1717881230515,3.45051969,3673.4,3672.8,0.34711676]
[1717881232215,2.3136,3673.4,3672.8,0.34711676]
[1717881238132,3.0,3673.5,3672.6,2.3547]
[1717881238352,3.641,3673.5,3672.7,0.34717831]
[1717881239052,4.77791969,3673.5,3672.7,0.34717831]
[1717881239261,1.12364842,3673.4,3672.7,0.34717831]
[1717881243104,1.13691969,3673.6,3673.4,2.72227]
[1717881243370,1.089432,3675.0,3673.4,2.72227]
[1717881243371,1.13691969,3674.3,3673.6,2.72212]
[1717881243575,0.41834385,3674.3,3673.9,0.641]
[1717881243782,3.36226,3674.8,3673.9,0.641]
[1717881243978,3.36226,3674.8,3674.0,0.34642659]
[1717881244281,2.72126,3674.8,3674.0,0.34642659]
[1717881252872,3.36226,3674.8,3674.0,0.34642659]
[1717881253171,0.336226,3674.7,3674.0,0.34642659]
[1717881253490,1.41908618,3675.5,3674.0,0.34642659]
[1717881253491,1.6274326,3675.4,3675.1,2.72097]
[1717881253700,2.3406,3676.2,3675.1,2.72097]
[1717881253701,0.641,3676.1,3675.1,3.36197]
[1717881253987,0.641,3676.0,3675.2,0.34507336]
[1717881254140,0.29816,3675.9,3675.2,0.34507336]
[1717881255479,0.641,3676.2,3675.2,0.34507336]
[1717881255784,0.641,3676.2,3675.3,0.641]
[1717881256152,0.641,3676.2,3675.4,0.34458523]
[1717881256353,3.0,3676.4,3675.4,2.82758523]
[1717881256593,0.806063,3676.3,3675.5,0.641]
[1717881256944,1.447063,3676.3,3675.6,0.34446233]
[1717881257191,0.806063,3676.3,3675.6,0.34446233]
[1717881257780,0.806063,3676.3,3675.7,0.641]
[1717881258076,0.806063,3676.3,3675.8,0.3442978]
[1717881258283,3.641,3676.8,3675.8,0.3442978]
[1717881258579,3.641,3676.8,3675.9,0.34423636]
[1717881258735,3.641,3676.8,3675.7,0.641]
[1717881258939,3.641,3676.8,3675.8,0.3442914]
[1717881259176,0.870121,3676.7,3675.8,0.3442914]
[1717881260741,0.641,3676.6,3675.8,0.3442914]
[1717881261572,0.870121,3676.7,3675.8,0.3442914]
[1717881261573,1.511121,3676.7,3675.8,0.3442914]
[1717881262196,2.71961,3677.0,3675.8,0.3442914]
[1717881262197,2.71961,3677.0,3675.9,6.59625466]
[1717881262489,2.71961,3677.0,3676.2,0.641]
[1717881262774,2.71961,3677.0,3676.3,0.34389777]
[1717881263655,3.0,3676.9,3676.3,0.34389777]
[1717881263858,3.636061,3676.9,3676.3,0.34389777]
[1717881264495,3.0,3676.9,3676.4,2.483]
[1717881264702,0.641,3677.3,3676.4,2.483]
[1717881264845,0.641,3677.3,3676.5,0.34315356]
[1717881265215,3.0,3677.4,3676.5,0.34315356]
[1717881265216,0.636028,3677.2,3676.5,0.34315356]
[1717881267602,3.0,3677.4,3676.5,0.34315356]
[1717881267775,0.641,3677.3,3676.5,0.34315356]
[1717881268709,3.0,3677.4,3676.5,0.34315356]
[1717881268910,3.641,3677.4,3676.5,0.34315356]
[1717881269830,3.0,3677.4,3676.8,0.641]
[1717881270288,3.0,3677.4,3676.9,0.34271263]
[1717881271572,2.71928,3677.5,3676.9,0.34271263]
[1717881273265,2.71892,3678.0,3676.9,0.34271263]
[1717881273470,4.60451526,3677.9,3676.9,0.34271263]
[1717881273707,4.60451526,3677.9,3676.8,0.641]
[1717881273947,4.60451526,3677.9,3677.0,0.98365122]
[1717881274075,4.60451526,3677.9,3677.0,0.641]
[1717881274419,4.60451526,3677.9,3677.1,0.34258982]
[1717881274599,0.73234353,3677.8,3677.1,0.34258982]
[1717881274918,3.0,3677.9,3677.2,2.435]
[1717881275226,3.0,3677.9,3677.3,0.34246703]
[1717881277481,0.641,3677.7,3677.3,0.34246703]
[1717881277821,0.641,3677.7,3676.7,2.71982]
[1717881277822,0.641,3677.7,3676.9,2.435]
[1717881277998,0.641,3677.7,3677.4,0.33017472]
[1717881278315,0.336003,3677.6,3676.9,2.435]
[1717881278532,0.336003,3677.6,3677.5,0.33011333]
[1717881278985,0.336003,3677.6,3676.9,2.435]
[1717881279180,0.336003,3677.6,3677.0,0.3304203]
[1717881283208,1.9656188,3677.6,3677.0,0.3304203]
[1717881285017,1.6296158,3677.5,3677.0,0.3304203]
[1717881285518,1.6296158,3677.4,3677.0,0.3304203]
[1717881286198,1.62976625,3677.3,3677.0,0.3304203]
[1717881287131,1.62976625,3677.4,3677.0,0.3304203]
[1717881287421,1.62976625,3677.3,3677.0,0.3304203]
[1717881287629,2.71903,3677.8,3677.0,0.3304203]
[1717881287630,1.62976625,3677.4,3677.0,0.3304203]
[1717881288202,1.57976625,3677.4,3677.0,0.3304203]
[1717881289313,0.58767283,3677.5,3677.0,0.3304203]
[1717881289500,2.71918,3677.6,3677.0,0.3304203]
[1717881289701,3.30685283,3677.6,3677.0,0.3304203]
[1717881290020,2.71918,3677.6,3677.0,0.3304203]
[1717881290241,0.58767283,3677.5,3677.0,0.3304203]
[1717881290640,2.71918,3677.6,3677.0,0.3304203]
[1717881290814,3.30685283,3677.6,3677.0,0.3304203]
[1717881291004,2.71918,3677.6,3677.0,0.3304203]
[1717881291200,0.58767283,3677.5,3677.0,0.3304203]
[1717881291548,3.30701283,3677.4,3677.0,0.3304203]
[1717881291756,0.58767283,3677.3,3677.0,0.3304203]
[1717881292126,2.71934,3677.4,3677.0,0.3304203]
[1717881292312,0.58767283,3677.3,3677.0,0.3304203]
[1717881292512,0.58767283,3677.2,3677.0,0.3304203]
[1717881292949,0.58767283,3677.3,3677.0,0.3304203]
[1717881293252,1.62972828,3677.2,3677.0,0.3304203]
[1717881293412,2.21740111,3677.2,3677.0,0.3304203]
[1717881293617,1.62972828,3677.1,3677.0,0.3304203]
[1717881301145,1.62972828,3677.1,3676.7,2.4179]
[1717881301348,1.62972828,3677.1,3677.0,0.33057554]
[1717881301570,1.62972828,3677.1,3676.7,2.4179]
[1717881301743,1.62972828,3677.2,3677.0,0.33057554]
[1717881301951,1.62972828,3677.1,3676.7,2.4179]
[1717881302176,1.62972828,3677.2,3676.4,8.071]
[1717881302348,0.641,3677.0,3676.4,7.43]
[1717881302680,4.99053828,3676.8,3676.4,7.43]
[1717881302847,1.62972828,3676.7,3676.4,7.43]
[1717881303034,1.62972828,3676.7,3676.1,2.4179]
[1717881303376,5.6651,3676.6,3675.7,3.0589]
[1717881303578,7.88250111,3676.6,3675.7,3.0589]
[1717881303801,2.72013,3676.3,3675.7,2.4179]
[1717881304236,5.76055394,3676.3,3675.7,2.4179]
[1717881304437,4.13082566,3676.3,3675.7,2.4179]
[1717881304638,2.72013,3676.3,3675.7,2.4179]
[1717881306275,2.72013,3676.3,3675.8,0.30953613]
[1717881306641,0.641,3676.2,3675.4,5.00148]
[1717881306840,0.641,3676.2,3675.9,0.30947469]
[1717881307067,0.641,3676.2,3675.4,5.00148]
[1717881307278,0.641,3676.2,3676.0,0.30941326]
[1717881307447,4.13082566,3676.3,3675.4,5.00148]
[1717881307648,2.72013,3676.3,3675.4,5.00148]
[1717881307852,2.72013,3676.3,3675.5,0.30972048]
[1717881310370,3.286663,3676.3,3675.5,0.30972048]
[1717881311658,3.0778,3676.2,3675.5,0.30972048]
[1717881311993,3.0778,3676.2,3675.2,2.9217]
[1717881312590,3.0778,3676.2,3675.3,0.30984339]
[1717881312813,0.641,3676.0,3675.3,0.30984339]
[1717881313798,2.72043,3675.9,3675.3,0.30984339]
[1717881314099,0.641,3675.8,3675.3,0.30984339]
[1717881314305,0.641,3675.8,3674.9,5.00181]
[1717881314457,2.72057,3675.7,3674.9,2.2807]
[1717881314658,2.72057,3675.7,3675.0,0.31002778]
[1717881315661,2.4368,3675.6,3675.0,0.31002778]
[1717881317164,3.0778,3675.6,3675.0,0.31002778]
[1717881317471,0.641,3675.4,3674.5,5.9217]
[1717881317684,0.641,3675.4,3675.1,0.31059471]
[1717881317887,3.0778,3675.6,3674.5,5.9217]
[1717881318061,3.0778,3675.6,3675.2,0.31053325]
[1717881318265,0.579837,3675.5,3674.5,5.9217]
[1717881318468,3.0778,3675.6,3675.3,0.31047179]
[1717881318691,3.0778,3675.6,3674.5,5.9217]
[1717881318896,3.0778,3675.6,3675.4,0.31041033]
[1717881319211,2.72071,3675.5,3674.5,2.9217]
[1717881319380,3.02849,3675.5,3674.5,2.9217]
[1717881319581,3.02849,3675.5,3674.6,0.31090209]
[1717881319770,0.641,3675.4,3674.6,0.31090209]
[1717881320597,0.641,3675.4,3674.5,2.9217]
[1717881320907,0.641,3675.4,3674.5,3.486016]
[1717881321079,0.641,3675.4,3674.6,0.31090209]
[1717881323570,0.641,3675.2,3674.6,0.31090209]
[1717881324003,2.72087,3675.3,3674.6,0.31090209]
[1717881328811,0.641,3675.0,3674.6,0.31090209]
[1717881329178,0.641,3675.0,3674.2,2.3855]
[1717881329389,0.641,3675.0,3674.7,0.30053603]
[1717881329595,0.641,3675.0,3674.2,2.3855]
[1717881329596,2.72117,3674.9,3674.2,2.3855]
[1717881329912,2.72117,3674.9,3674.0,2.3855]
[1717881330076,0.641,3674.8,3674.3,0.300856]
[1717881330277,0.641,3674.8,3674.0,2.3855]
[1717881330278,1.159357,3674.8,3674.0,2.3855]
[1717881330606,0.641,3674.6,3674.4,0.30079451]
[1717881330811,0.641,3674.6,3674.0,2.3855]
[1717881330997,0.641,3674.6,3674.5,0.30073302]
[1717881331187,0.641,3674.6,3674.0,2.3855]
[1717881331388,0.641,3674.6,3674.5,0.30073302]
[1717881331588,0.641,3674.8,3674.0,2.3855]
[1717881331826,0.641,3674.8,3674.5,0.30073302]
[1717881332122,0.641,3674.8,3674.6,0.30067154]
[1717881332322,2.72117,3674.9,3674.0,2.3855]
[1717881332472,0.641,3674.8,3674.7,0.30061006]
[1717881332673,0.641,3674.8,3674.0,2.3855]
[1717881332912,0.641,3674.8,3674.7,0.30061006]
[1717881333076,0.641,3674.8,3674.0,2.3855]
[1717881333276,0.641,3674.8,3674.7,0.30061006]
[1717881333489,0.641,3674.8,3674.0,2.3855]
[1717881333668,0.641,3674.8,3674.0,2.960935]
[1717881333873,0.641,3674.8,3674.1,0.30097899]
[1717881334685,2.4624,3674.7,3674.1,0.30097899]
[1717881335091,2.4624,3674.7,3673.9,2.72185]
[1717881335415,2.4624,3674.7,3674.2,0.30091749]
[1717881335576,2.4624,3674.7,3673.9,2.72185]
[1717881335778,2.4624,3674.7,3674.3,0.300856]
[1717881335977,2.4624,3674.7,3673.9,3.297285]
[1717881336541,2.4624,3674.7,3674.0,0.30104049]
[1717881338395,2.72117,3674.9,3674.3,2.2765]
[1717881338815,2.72117,3674.9,3674.4,0.3008562]
[1717881351013,3.1038,3674.6,3674.4,0.3008562]
[1717881351413,3.1038,3674.6,3673.8,2.2791]
[1717881351636,3.1038,3674.6,3674.5,0.30090574]
[1717881351953,3.1038,3674.6,3673.5,6.36317]
[1717881351954,2.72147,3674.5,3673.7,0.006]
[1717881352144,0.641,3674.2,3673.6,2.2791]
[1717881352822,0.641,3674.4,3673.6,2.2791]
[1717881359349,0.641,3674.4,3673.6,2.843927]
[1717881366315,0.641,3674.4,3673.7,0.30170317]
[1717881373117,2.06285653,3674.4,3673.7,0.30170317]
[1717881374295,2.06316445,3674.4,3673.7,0.30170317]
[1717881377298,2.4325,3674.3,3673.7,0.30170317]
[1717881381113,4.06158566,3674.3,3673.7,0.30170317]
[1717881382723,2.4325,3674.3,3673.7,0.30170317]
[1717881383727,4.06158566,3674.3,3673.7,0.30170317]
[1717881384712,2.4325,3674.3,3673.7,0.30170317]
[1717881385634,4.06158566,3674.3,3673.7,0.30170317]
[1717881388632,2.4325,3674.3,3673.7,0.30170317]
[1717881389125,4.06158566,3674.3,3673.7,0.30170317]
[1717881391321,2.4325,3674.3,3673.7,0.30170317]
[1717881391640,4.06158566,3674.3,3673.7,0.30170317]
[1717881392002,4.06158566,3674.3,3673.5,2.72217]
[1717881392199,4.06158566,3674.3,3673.5,3.294947]
[1717881392397,4.06158566,3674.3,3673.6,0.30186036]
[1717881392800,2.4325,3674.3,3673.6,0.30186036]
[1717881393630,5.48375011,3674.3,3673.6,0.30186036]
[1717881393946,6.07657582,3674.3,3673.6,0.30186036]
[1717881394142,5.48842461,3674.3,3673.6,0.30186036]
[1717881394313,3.85748049,3674.3,3673.6,0.30186036]
[1717881395216,1.42498049,3674.2,3673.6,0.30186036]
[1717881395602,3.85748049,3674.3,3673.6,0.30186036]
[1717881396003,1.42498049,3674.2,3673.6,0.30186036]
[1717881398325,1.42498049,3674.1,3673.6,0.30186036]
[1717881398525,1.42498049,3674.2,3673.6,0.30186036]
[1717881399948,1.42498049,3674.1,3673.6,0.30186036]
[1717881400303,4.0637783,3674.3,3673.6,0.30186036]
[1717881400304,1.42498049,3674.0,3673.6,0.30186036]
[1717881402838,1.42498049,3673.9,3673.7,0.30179885]
[1717881403050,1.42498049,3673.9,3673.3,2.9996]
[1717881403354,1.42498049,3673.9,3673.8,0.30173734]
[1717881403508,1.42498049,3673.9,3673.3,2.9996]
[1717881403704,1.42498049,3673.9,3673.8,0.30173734]
[1717881403928,1.42498049,3673.9,3673.3,2.9996]
[1717881404145,1.42498049,3673.9,3673.8,0.30173734]
[1717881404316,1.42498049,3674.0,3673.3,2.9996]
[1717881404519,1.42498049,3674.0,3673.8,0.30173734]
[1717881404738,1.42498049,3673.9,3673.3,2.9996]
[1717881404933,1.42498049,3674.0,3673.3,3.872407]
[1717881407506,1.42498049,3674.1,3673.3,3.872407]
[1717881407711,1.42498049,3674.2,3673.3,3.872407]
[1717881407947,1.42498049,3674.1,3673.3,3.872407]
[1717881408553,1.42498049,3674.0,3673.3,3.872407]
[1717881408917,1.42498049,3674.0,3673.3,3.231407]
[1717881409544,1.42498049,3674.1,3673.3,3.231407]
[1717881409756,1.42498049,3674.1,3673.3,2.3586]
[1717881410127,1.42498049,3674.0,3673.3,2.3586]
[1717881411029,1.42498049,3674.1,3673.3,2.3586]
[1717881411347,1.42498049,3674.0,3673.4,0.30206053]
[1717881418568,5.62496477,3674.3,3673.4,0.30206053]
[1717881418569,1.42498049,3674.1,3673.4,0.30206053]
[1717881419057,1.42498049,3674.0,3673.4,0.30206053]
[1717881423672,2.22002812,3674.2,3673.4,0.30206053]
[1717881423979,1.42745948,3674.0,3673.4,0.30206053]
[1717881425662,3.11921162,3674.2,3673.4,0.30206053]
[1717881425876,1.42735887,3674.0,3673.4,0.30206053]
[1717881432090,1.4275279,3674.0,3673.4,0.30206053]
[1717881435071,1.42745323,3674.0,3673.4,0.30206053]
[1717881438986,1.42736048,3674.0,3673.4,0.30206053]
[1717881440584,1.63239288,3674.2,3673.4,0.30206053]
[1717881440585,1.42736048,3674.1,3673.4,0.30206053]
[1717881441254,1.42736048,3674.0,3673.4,0.30206053]
[1717881444401,1.42765932,3674.0,3673.4,0.30206053]
[1717881450164,1.42765932,3673.9,3673.4,0.30206053]
[1717881450365,1.42765932,3673.9,3673.3,2.9996]
[1717881450569,1.42765932,3673.9,3673.4,0.30202043]
[1717881450771,1.42765932,3673.9,3673.3,3.872407]
[1717881450977,1.42765932,3673.9,3673.4,0.30202043]
[1717881451181,1.42765932,3673.9,3673.3,3.872407]
[1717881451382,1.42765932,3673.9,3673.4,0.30202043]
[1717881451568,1.42765932,3674.0,3673.3,3.872407]
[1717881451770,1.42765932,3674.0,3673.4,0.30202043]
[1717881452095,1.42765932,3673.9,3673.4,0.30202043]
[1717881452403,1.42765932,3673.9,3673.3,2.9996]
[1717881452721,1.42765932,3673.9,3673.4,0.30202043]
[1717881453104,1.42765932,3673.9,3673.3,3.872407]
[1717881453318,1.42765932,3673.9,3673.5,0.30195891]
[1717881453487,1.42765932,3674.0,3673.6,2.4809]
[1717881453688,1.42765932,3674.0,3673.6,2.7827974]
[1717881454322,1.42765932,3673.9,3673.6,2.7827974]
[1717881457034,1.42765932,3674.0,3673.6,2.7827974]
[1717881457990,1.42765932,3673.9,3673.6,2.7827974]
[1717881459136,1.42765932,3674.0,3673.6,2.7827974]
[1717881466138,1.42765932,3673.9,3673.6,2.7827974]
[1717881466704,1.42765932,3674.0,3673.6,2.7827974]
[1717881467839,1.4290805,3674.0,3673.6,2.7827974]
[1717881472610,1.4290805,3673.9,3673.6,2.7827974]
[1717881473013,1.4290805,3674.0,3673.6,2.7827974]
[1717881473543,1.4290805,3673.9,3673.6,2.7827974]
[1717881473948,1.4291588,3673.9,3673.6,2.7827974]
[1717881474272,1.4291588,3674.1,3673.9,2.3724]
[1717881474627,1.4291588,3674.3,3674.0,0.30166061]
[1717881474812,1.4291588,3674.3,3674.1,2.3724]
[1717881475253,1.4291588,3674.3,3674.2,0.30153761]
[1717881477150,1.4291588,3674.4,3674.2,0.30153761]
[1717881481038,1.42818269,3674.4,3674.2,0.30153761]
[1717881483262,1.42818269,3674.3,3674.0,2.4217]
[1717881483565,1.42818269,3674.3,3674.1,0.30107751]
[1717881483860,1.42818269,3674.4,3674.1,0.30107751]
[1717881485645,1.42818269,3674.3,3674.1,0.30107751]
[1717881486044,1.42818269,3674.4,3674.1,0.30107751]
[1717881488664,1.42729271,3674.4,3674.1,0.30107751]
[1717881489830,1.42721972,3674.4,3674.1,0.30107751]
[1717881491144,3.05541703,3674.7,3674.1,0.31844791]
[1717881491145,1.42721972,3674.5,3674.1,0.31844791]
[1717881496661,1.42721972,3674.4,3674.1,0.31844791]
[1717881497246,1.42734606,3674.4,3674.1,0.31844791]
[1717881502053,1.42734606,3674.5,3674.1,0.31844791]
[1717881504154,3.06034184,3674.5,3674.1,0.31844791]
[1717881505671,1.42734606,3674.4,3674.1,0.31844791]
[1717881507156,3.06065267,3674.4,3674.1,0.31844791]
[1717881507654,1.42734606,3674.3,3674.1,0.31844791]
[1717881507964,3.06063381,3674.4,3674.1,0.31844791]
[1717881508181,1.42734606,3674.4,3674.1,0.31844791]
[1717881509688,3.06063381,3674.4,3674.1,0.31844791]
[1717881509893,1.42734606,3674.3,3674.1,0.31844791]
[1717881510690,3.06063381,3674.4,3674.1,0.31844791]
[1717881511091,1.42734606,3674.3,3674.1,0.31844791]
[1717881511593,1.42734606,3674.4,3674.1,0.31844791]
[1717881512571,1.42734606,3674.3,3674.1,0.31844791]
[1717881514183,1.42734606,3674.4,3674.1,0.31844791]
[1717881516404,1.42734606,3674.4,3674.2,2.3378]
[1717881516606,1.42734606,3674.4,3674.2,2.63883451]
[1717881518488,2.72118,3674.9,3674.2,2.63883451]
[1717881518808,1.42832759,3674.4,3674.2,2.3378]
[1717881519033,1.42832759,3674.4,3674.3,3.27977302]
[1717881519304,1.42832759,3674.6,3674.5,2.3378]
[1717881519610,1.42832759,3674.9,3674.6,2.3378]
[1717881519808,1.42832759,3675.0,3674.7,0.641]
[1717881519966,1.42832759,3675.0,3674.8,2.3378]
[1717881520174,1.42832759,3675.1,3674.8,2.63829901]
[1717881520576,1.42776321,3675.1,3674.8,2.63829901]
[1717881522104,2.72089,3675.3,3674.8,2.63829901]
[1717881522105,1.42776321,3675.0,3674.8,2.63829901]
[1717881522283,1.42776321,3675.1,3674.8,2.63829901]
[1717881523185,1.42776321,3675.2,3674.8,2.63829901]
[1717881523571,1.42776321,3675.1,3674.8,2.63829901]
[1717881525401,1.42776321,3675.2,3674.8,2.63829901]
[1717881525606,1.42776321,3675.1,3674.8,2.63829901]
[1717881525906,1.42776321,3675.2,3674.8,2.63829901]
[1717881526102,1.42776321,3675.1,3674.8,2.63829901]
[1717881527111,1.42776321,3675.2,3674.8,2.63829901]
[1717881529318,1.42776321,3675.1,3674.8,2.63829901]
[1717881529484,1.42776321,3675.2,3674.8,2.63829901]
[1717881529815,1.42614315,3675.2,3674.8,2.63829901]
[1717881530026,1.42614315,3675.1,3674.8,2.63829901]
[1717881531226,1.42614315,3675.2,3674.8,2.63829901]
[1717881533421,1.42614315,3675.1,3674.8,2.63829901]
[1717881534010,1.42614315,3675.2,3674.8,2.63829901]
[1717881536391,1.42614315,3675.2,3674.9,0.641]